[Event "MČR juniorů a juniorek v rapid šachu 2023"]
[Site "Czech Republic"]
[Date "2023.09.24"]
[Round "7.15"]
[White "Mrkvan, Frantisek"]
[Black "Rucabado, Stefan"]
[Result "1-0"]
[TimeControl "20 min + 5 sec per move"]
[WhiteFideId "23721626"]
[BlackFideId "23730315"]
[WhiteElo "1601"]
[BlackElo "1782"]

1. e4 {[%clk 00:20:08]} {[%emt 00:00:01]} c5 {[%clk 00:19:43]} {[%emt
00:00:28]} 2. c3 {[%clk 00:19:30]} {[%emt 00:00:43]} d5 {[%clk 00:19:46]}
{[%emt 00:00:01]} 3. exd5 {[%clk 00:19:34]} {[%emt 00:00:02]} Qxd5 {[%clk
00:19:49]} 4. d4 {[%clk 00:19:38]} {[%emt 00:00:02]} g6 {[%clk 00:19:53]}
{[%emt 00:00:01]} 5. Nf3 {[%clk 00:19:27]} {[%emt 00:00:16]} Bg7 {[%clk
00:19:56]} {[%emt 00:00:02]} 6. Na3 {[%clk 00:19:13]} {[%emt 00:00:18]} Nf6
{[%clk 00:17:29]} {[%emt 00:02:32]} 7. Bc4 {[%clk 00:16:24]} {[%emt 00:02:55]}
Qe4+ {[%clk 00:17:32]} {[%emt 00:00:02]} 8. Qe2 {[%clk 00:16:27]} {[%emt
00:00:02]} Qxe2+ {[%clk 00:16:00]} {[%emt 00:01:38]} 9. Bxe2 {[%clk 00:16:02]}
{[%emt 00:00:29]} cxd4 {[%clk 00:16:04]} {[%emt 00:00:02]} 10. Nxd4 {[%clk
00:16:06]} {[%emt 00:00:01]} a6 {[%clk 00:15:51]} {[%emt 00:00:18]} 11. Nc4
{[%clk 00:13:06]} {[%emt 00:03:04]} Nbd7 {[%clk 00:15:51]} {[%emt 00:00:05]} 12.
O-O {[%clk 00:10:33]} {[%emt 00:02:38]} O-O {[%clk 00:15:55]} {[%emt 00:00:02]}
13. Bf4 {[%clk 00:09:52]} {[%emt 00:00:46]} Re8 {[%clk 00:13:21]} {[%emt
00:02:39]} 14. Nf3 {[%clk 00:07:56]} {[%emt 00:02:01]} Nd5 {[%clk 00:11:34]}
{[%emt 00:01:51]} 15. Bg3 {[%clk 00:07:42]} {[%emt 00:00:19]} b5 {[%clk
00:11:28]} {[%emt 00:00:10]} 16. Nce5 {[%clk 00:07:11]} {[%emt 00:00:37]} Nxe5
{[%clk 00:11:13]} {[%emt 00:00:21]} 17. Nxe5 {[%clk 00:07:04]} {[%emt
00:00:12]} Bb7 {[%clk 00:10:36]} {[%emt 00:00:42]} 18. Bf3 {[%clk 00:07:01]}
{[%emt 00:00:08]} Rad8 {[%clk 00:10:27]} {[%emt 00:00:13]} 19. Nd3 {[%clk
00:05:28]} {[%emt 00:01:39]} Nxc3 {[%clk 00:09:30]} {[%emt 00:01:01]} 20. Bxb7
{[%clk 00:05:22]} {[%emt 00:00:11]} Ne2+ {[%clk 00:09:34]} {[%emt 00:00:02]} 21.
Kh1 {[%clk 00:05:26]} Nxg3+ {[%clk 00:09:38]} 22. hxg3 {[%clk 00:05:29]} {[%emt
00:00:02]} Rxd3 {[%clk 00:09:41]} 23. Bxa6 {[%clk 00:05:33]} {[%emt 00:00:01]}
Rb8 {[%clk 00:09:37]} {[%emt 00:00:10]} 24. a4 {[%clk 00:04:40]} {[%emt
00:00:58]} Rd2 {[%clk 00:09:07]} {[%emt 00:00:34]} 25. Bxb5 {[%clk 00:03:37]}
{[%emt 00:01:09]} Rxb2 {[%clk 00:09:09]} {[%emt 00:00:02]} 26. Rab1 {[%clk
00:03:11]} {[%emt 00:00:31]} Ra2 {[%clk 00:09:07]} {[%emt 00:00:07]} 27. Rbd1
{[%clk 00:02:13]} {[%emt 00:01:03]} e6 {[%clk 00:08:45]} {[%emt 00:00:28]} 28.
Kg1 {[%clk 00:02:02]} {[%emt 00:00:16]} Bf6 {[%clk 00:08:41]} {[%emt 00:00:09]}
29. Rd3 {[%clk 00:01:45]} {[%emt 00:00:22]} Rc8 {[%clk 00:08:19]} {[%emt
00:00:27]} 30. Rf3 {[%clk 00:01:22]} {[%emt 00:00:28]} Kg7 {[%clk 00:08:22]}
{[%emt 00:00:02]} 31. Rd1 {[%clk 00:01:25]} {[%emt 00:00:02]} Rc7 {[%clk
00:08:02]} {[%emt 00:00:24]} 32. Rd7 {[%clk 00:01:10]} {[%emt 00:00:20]} Rxd7
{[%clk 00:07:52]} {[%emt 00:00:15]} 33. Bxd7 {[%clk 00:01:14]} {[%emt
00:00:01]} g5 {[%clk 00:07:56]} 34. Rd3 {[%clk 00:01:17]} {[%emt 00:00:02]} h5
{[%clk 00:07:38]} {[%emt 00:00:23]} 35. Be8 {[%clk 00:01:09]} {[%emt 00:00:13]}
Kf8 {[%clk 00:07:32]} {[%emt 00:00:12]} 36. Bb5 {[%clk 00:01:13]} {[%emt
00:00:02]} Be7 {[%clk 00:06:36]} {[%emt 00:01:00]} 37. Rc3 {[%clk 00:01:12]}
{[%emt 00:00:06]} f5 {[%clk 00:06:03]} {[%emt 00:00:37]} 38. Bc4 {[%clk
00:00:56]} {[%emt 00:00:22]} Ra1+ {[%clk 00:04:44]} {[%emt 00:01:24]} 39. Kh2
{[%clk 00:01:00]} e5 {[%clk 00:04:48]} 40. Be6 {[%clk 00:00:44]} {[%emt
00:00:21]} f4 {[%clk 00:04:29]} {[%emt 00:00:23]} 41. gxf4 {[%clk 00:00:47]}
{[%emt 00:00:02]} exf4 {[%clk 00:04:29]} {[%emt 00:00:05]} 42. Rc4 {[%clk
00:00:13]} {[%emt 00:00:39]} Kg7 {[%clk 00:04:16]} {[%emt 00:00:19]} 43. Bd5
{[%clk 00:00:13]} {[%emt 00:00:05]} Bd6 {[%clk 00:03:46]} {[%emt 00:00:34]} 44.
f3 {[%clk 00:00:11]} {[%emt 00:00:07]} g4 {[%clk 00:01:56]} {[%emt 00:01:55]}
45. fxg4 {[%clk 00:00:15]} {[%emt 00:00:01]} hxg4 {[%clk 00:02:00]} {[%emt
00:00:02]} 46. Rc6 {[%clk 00:00:19]} Be5 {[%clk 00:01:56]} {[%emt 00:00:10]} 47.
Re6 {[%clk 00:00:23]} Bf6 {[%clk 00:01:19]} {[%emt 00:00:42]} 48. Re4 {[%clk
00:00:14]} {[%emt 00:00:14]} Kg6 {[%clk 00:00:09]} {[%emt 00:01:15]} 49. Be6
{[%clk 00:00:18]} Kg5 {[%clk 00:00:08]} {[%emt 00:00:06]} 50. g3 {[%emt
00:00:25]} 1-0

[Event "MČR juniorů a juniorek v rapid šachu 2023"]
[Site "Czech Republic"]
[Date "2023.09.24"]
[Round "7.16"]
[White "Mikolas, Petr"]
[Black "Nagyova, Daniela"]
[Result "1-0"]
[TimeControl "20 min + 5 sec per move"]
[WhiteFideId "23713224"]
[BlackFideId "390070"]
[WhiteElo "1514"]
[BlackElo "1762"]

1. e4 {[%clk 00:20:08]} {[%emt 00:00:02]} e5 {[%clk 00:20:07]} {[%emt
00:00:03]} 2. Nf3 {[%clk 00:20:11]} {[%emt 00:00:02]} Nc6 {[%clk 00:20:10]}
{[%emt 00:00:02]} 3. Bc4 {[%clk 00:20:14]} {[%emt 00:00:02]} Nf6 {[%clk
00:20:12]} {[%emt 00:00:02]} 4. Ng5 {[%clk 00:20:15]} {[%emt 00:00:05]} d5
{[%clk 00:20:08]} {[%emt 00:00:09]} 5. exd5 {[%clk 00:20:18]} {[%emt 00:00:03]}
Na5 {[%clk 00:20:04]} {[%emt 00:00:09]} 6. Bb5+ {[%clk 00:20:19]} {[%emt
00:00:03]} Bd7 {[%clk 00:20:07]} {[%emt 00:00:02]} 7. Qe2 {[%clk 00:20:20]}
{[%emt 00:00:05]} Bxb5 {[%clk 00:19:50]} {[%emt 00:00:21]} 8. Qxb5+ {[%clk
00:20:23]} {[%emt 00:00:02]} c6 {[%clk 00:19:53]} {[%emt 00:00:02]} 9. dxc6
{[%clk 00:20:22]} {[%emt 00:00:06]} Nxc6 {[%clk 00:19:56]} {[%emt 00:00:02]} 10.
Qxb7 {[%clk 00:20:04]} {[%emt 00:00:23]} Ne7 {[%clk 00:17:30]} {[%emt
00:02:31]} 11. O-O {[%clk 00:18:49]} {[%emt 00:01:20]} Rb8 {[%clk 00:15:58]}
{[%emt 00:01:37]} 12. Qxa7 {[%clk 00:17:57]} {[%emt 00:00:57]} h6 {[%clk
00:15:52]} {[%emt 00:00:11]} 13. Nf3 {[%clk 00:17:48]} {[%emt 00:00:14]} e4
{[%clk 00:14:07]} {[%emt 00:01:50]} 14. Ne5 {[%clk 00:17:51]} {[%emt 00:00:02]}
Qd6 {[%clk 00:12:46]} {[%emt 00:01:27]} 15. Qa4+ {[%clk 00:17:44]} {[%emt
00:00:13]} Nd7 {[%clk 00:12:18]} {[%emt 00:00:32]} 16. Nxd7 {[%clk 00:17:46]}
{[%emt 00:00:03]} Qxd7 {[%clk 00:12:21]} {[%emt 00:00:02]} 17. Qxe4 {[%clk
00:17:49]} {[%emt 00:00:02]} Rb6 {[%clk 00:11:41]} {[%emt 00:00:45]} 18. Nc3
{[%clk 00:16:08]} {[%emt 00:01:46]} Rg6 {[%clk 00:10:19]} {[%emt 00:01:27]} 19.
Re1 {[%clk 00:14:12]} {[%emt 00:02:01]} f5 {[%clk 00:09:09]} {[%emt 00:01:15]}
20. Qd5 {[%clk 00:11:18]} {[%emt 00:02:59]} Rd6 {[%clk 00:08:11]} {[%emt
00:01:03]} 21. Qb5 {[%clk 00:11:21]} {[%emt 00:00:01]} Rc6 {[%clk 00:06:10]}
{[%emt 00:02:06]} 22. d4 {[%clk 00:11:24]} {[%emt 00:00:02]} Kd8 {[%clk
00:05:04]} {[%emt 00:01:11]} 23. d5 {[%clk 00:11:27]} {[%emt 00:00:03]} Rd6
{[%clk 00:05:08]} {[%emt 00:00:02]} 24. Qxd7+ {[%clk 00:11:17]} {[%emt
00:00:14]} Rxd7 {[%clk 00:05:11]} {[%emt 00:00:02]} 25. Re5 {[%clk 00:10:16]}
{[%emt 00:01:06]} 1-0

[Event "MČR juniorů a juniorek v rapid šachu 2023"]
[Site "Czech Republic"]
[Date "2023.09.24"]
[Round "7.17"]
[White "Mrazek, Adam"]
[Black "Dvorak, Jan"]
[Result "1/2-1/2"]
[TimeControl "20 min + 5 sec per move"]
[WhiteFideId "23725010"]
[BlackFideId "23730722"]
[WhiteElo "1753"]
[BlackElo "1624"]

1. c4 {[%clk 00:20:06]} {[%emt 00:00:03]} Nf6 {[%clk 00:20:00]} {[%emt
00:00:10]} 2. g3 {[%clk 00:20:07]} {[%emt 00:00:04]} e6 {[%clk 00:19:48]}
{[%emt 00:00:17]} 3. Bg2 {[%clk 00:20:08]} {[%emt 00:00:03]} Nc6 {[%clk
00:19:51]} {[%emt 00:00:03]} 4. Nf3 {[%clk 00:19:22]} {[%emt 00:00:51]} b6
{[%clk 00:19:43]} {[%emt 00:00:13]} 5. O-O {[%clk 00:19:09]} {[%emt 00:00:17]}
Bb7 {[%clk 00:19:46]} {[%emt 00:00:03]} 6. d4 {[%clk 00:18:51]} {[%emt
00:00:23]} d5 {[%clk 00:19:43]} {[%emt 00:00:08]} 7. cxd5 {[%clk 00:17:35]}
{[%emt 00:01:21]} exd5 {[%clk 00:19:40]} {[%emt 00:00:08]} 8. Nc3 {[%clk
00:17:03]} {[%emt 00:00:36]} Be7 {[%clk 00:19:34]} {[%emt 00:00:12]} 9. Bf4
{[%clk 00:15:43]} {[%emt 00:01:25]} Bd6 {[%clk 00:18:37]} {[%emt 00:01:01]} 10.
Bg5 {[%clk 00:15:28]} {[%emt 00:00:19]} Be7 {[%clk 00:18:33]} {[%emt 00:00:09]}
11. Rc1 {[%clk 00:12:36]} {[%emt 00:02:57]} O-O {[%clk 00:18:17]} {[%emt
00:00:21]} 12. a3 {[%clk 00:11:10]} {[%emt 00:01:32]} h6 {[%clk 00:18:08]}
{[%emt 00:00:13]} 13. Bxf6 {[%clk 00:08:41]} {[%emt 00:02:34]} Bxf6 {[%clk
00:18:08]} {[%emt 00:00:05]} 14. Re1 {[%clk 00:07:55]} {[%emt 00:00:52]} Re8
{[%clk 00:17:09]} {[%emt 00:01:04]} 15. e3 {[%clk 00:07:50]} {[%emt 00:00:10]}
Rc8 {[%clk 00:16:35]} {[%emt 00:00:39]} 16. Bh3 {[%clk 00:07:04]} {[%emt
00:00:52]} Rb8 {[%clk 00:16:09]} {[%emt 00:00:32]} 17. b4 {[%clk 00:06:28]}
{[%emt 00:00:40]} Be7 {[%clk 00:15:00]} {[%emt 00:01:13]} 18. Qb3 {[%clk
00:06:09]} {[%emt 00:00:24]} a5 {[%clk 00:13:24]} {[%emt 00:01:42]} 19. b5
{[%clk 00:02:38]} {[%emt 00:03:36]} Na7 {[%clk 00:13:18]} {[%emt 00:00:11]} 20.
Ne5 {[%clk 00:02:26]} {[%emt 00:00:17]} Qd6 {[%clk 00:11:43]} {[%emt 00:01:40]}
21. Ra1 {[%clk 00:01:18]} {[%emt 00:01:13]} Bf8 {[%clk 00:09:05]} {[%emt
00:02:43]} 22. Rec1 {[%clk 00:00:49]} {[%emt 00:00:35]} Rbd8 {[%clk 00:08:02]}
{[%emt 00:01:07]} 23. Qc2 {[%clk 00:00:14]} {[%emt 00:00:40]} c5 {[%clk
00:07:11]} {[%emt 00:00:56]} 24. Bf5 {[%clk 00:00:08]} {[%emt 00:00:11]} g6
{[%emt 00:01:28]} 25. Bd3 c4 {[%clk 00:05:32]} {[%emt 00:00:21]} 26. Bf1 {[%clk
00:00:17]} Bg7 {[%clk 00:05:17]} {[%emt 00:00:20]} 27. Nf3 {[%clk 00:00:11]}
{[%emt 00:00:11]} Bc8 {[%clk 00:05:00]} {[%emt 00:00:22]} 28. a4 {[%clk
00:00:14]} {[%emt 00:00:02]} Bf5 {[%clk 00:04:44]} {[%emt 00:00:20]} 29. Qd2
{[%clk 00:00:10]} {[%emt 00:00:09]} Nc8 {[%clk 00:04:22]} {[%emt 00:00:28]} 30.
Bg2 {[%clk 00:00:13]} {[%emt 00:00:02]} Ne7 {[%clk 00:03:24]} {[%emt 00:01:03]}
31. Nh4 {[%clk 00:00:12]} {[%emt 00:00:05]} Bd3 {[%clk 00:03:02]} {[%emt
00:00:27]} 32. Nf3 {[%clk 00:00:12]} {[%emt 00:00:06]} Qe6 {[%clk 00:02:37]}
{[%emt 00:00:31]} 33. Ne1 {[%clk 00:00:09]} {[%emt 00:00:06]} Bf5 {[%clk
00:02:26]} {[%emt 00:00:18]} 34. Ne2 {[%clk 00:00:09]} {[%emt 00:00:05]} g5
{[%clk 00:02:06]} {[%emt 00:00:25]} 35. Ra2 {[%clk 00:00:07]} {[%emt 00:00:07]}
Nc8 {[%clk 00:01:59]} {[%emt 00:00:12]} 36. Nc3 {[%clk 00:00:08]} {[%emt
00:00:04]} Ne7 {[%clk 00:01:52]} {[%emt 00:00:12]} 37. Qb2 {[%clk 00:00:07]}
{[%emt 00:00:07]} Rc8 {[%clk 00:01:35]} {[%emt 00:00:22]} 38. Qa3 {[%clk
00:00:08]} {[%emt 00:00:04]} Red8 {[%clk 00:01:25]} {[%emt 00:00:15]} 39. Re2
{[%clk 00:00:12]} Bf8 {[%clk 00:01:20]} {[%emt 00:00:10]} 40. Qb2 {[%clk
00:00:15]} {[%emt 00:00:02]} Bg7 {[%clk 00:01:03]} {[%emt 00:00:22]} 41. Nf3
{[%clk 00:00:14]} {[%emt 00:00:06]} Bd3 {[%clk 00:01:03]} {[%emt 00:00:05]} 42.
Ree1 {[%clk 00:00:18]} Kh8 {[%clk 00:00:58]} {[%emt 00:00:10]} 43. Nd2 {[%clk
00:00:14]} {[%emt 00:00:09]} f5 {[%clk 00:00:40]} {[%emt 00:00:24]} 44. Nf3
{[%clk 00:00:14]} {[%emt 00:00:05]} Ng8 {[%clk 00:00:38]} {[%emt 00:00:06]} 45.
Red1 {[%clk 00:00:13]} {[%emt 00:00:06]} Nf6 {[%clk 00:00:40]} {[%emt
00:00:04]} 46. Ne1 {[%clk 00:00:17]} Be4 {[%clk 00:00:40]} {[%emt 00:00:04]} 47.
f3 {[%clk 00:00:10]} {[%emt 00:00:13]} Bd3 {[%clk 00:00:31]} {[%emt 00:00:14]}
48. Qd2 {[%clk 00:00:10]} {[%emt 00:00:05]} Re8 {[%clk 00:00:28]} {[%emt
00:00:08]} 49. Kf2 {[%clk 00:00:14]} Bf8 {[%clk 00:00:20]} {[%emt 00:00:13]} 50.
Nxd3 {[%clk 00:00:16]} {[%emt 00:00:03]} cxd3 {[%clk 00:00:22]} {[%emt
00:00:03]} 51. Qxd3 {[%clk 00:00:21]} {[%emt 00:00:02]} Bb4 {[%clk 00:00:20]}
{[%emt 00:00:06]} 52. Na2 {[%clk 00:00:21]} {[%emt 00:00:06]} Bd6 {[%clk
00:00:17]} {[%emt 00:00:06]} 53. Bh3 {[%clk 00:00:24]} {[%emt 00:00:02]} g4
{[%clk 00:00:19]} {[%emt 00:00:04]} 54. Bg2 {[%clk 00:00:13]} {[%emt 00:00:16]}
Rf8 {[%clk 00:00:16]} {[%emt 00:00:07]} 55. f4 {[%clk 00:00:10]} {[%emt
00:00:09]} Ne4+ {[%clk 00:00:19]} {[%emt 00:00:01]} 56. Bxe4 {[%clk 00:00:14]}
{[%emt 00:00:02]} dxe4 {[%clk 00:00:17]} {[%emt 00:00:07]} 57. Qd2 {[%clk
00:00:11]} {[%emt 00:00:07]} Kg7 {[%clk 00:00:16]} {[%emt 00:00:06]} 58. Qb2
{[%clk 00:00:15]} Kg6 {[%clk 00:00:18]} {[%emt 00:00:04]} 59. Nc3 {[%clk
00:00:12]} {[%emt 00:00:09]} Bb4 {[%clk 00:00:17]} {[%emt 00:00:05]} 60. Na2
{[%clk 00:00:11]} {[%emt 00:00:07]} Be7 {[%clk 00:00:18]} {[%emt 00:00:04]} 61.
Rxc8 {[%clk 00:00:09]} {[%emt 00:00:06]} Rxc8 {[%clk 00:00:21]} {[%emt
00:00:02]} 62. Rc1 {[%clk 00:00:11]} {[%emt 00:00:04]} Rxc1 {[%clk 00:00:14]}
{[%emt 00:00:11]} 63. Nxc1 {[%clk 00:00:15]} h5 {[%clk 00:00:14]} {[%emt
00:00:05]} 64. Qc3 {[%clk 00:00:14]} {[%emt 00:00:06]} h4 {[%clk 00:00:15]}
{[%emt 00:00:04]} 65. Qc6 {[%clk 00:00:12]} {[%emt 00:00:06]} Kf7 {[%clk
00:00:07]} {[%emt 00:00:13]} 66. d5 {[%clk 00:00:08]} {[%emt 00:00:10]} Qd6
{[%clk 00:00:08]} {[%emt 00:00:04]} 67. Qxd6 {[%clk 00:00:08]} {[%emt
00:00:06]} Bxd6 {[%clk 00:00:12]} {[%emt 00:00:02]} 68. Nb3 {[%clk 00:00:10]}
{[%emt 00:00:02]} Kf6 {[%clk 00:00:10]} {[%emt 00:00:07]} 69. Ke2 {[%clk
00:00:07]} {[%emt 00:00:09]} hxg3 {[%emt 00:00:05]} 70. hxg3 Bb4 {[%emt
00:00:05]} 71. Nd4 {[%clk 00:00:13]} {[%emt 00:00:02]} Bc5 {[%clk 00:00:09]}
{[%emt 00:00:06]} 72. Nc6 {[%clk 00:00:11]} {[%emt 00:00:07]} Kf7 {[%clk
00:00:09]} {[%emt 00:00:04]} 73. Kd2 {[%clk 00:00:11]} {[%emt 00:00:06]} Ke8
{[%clk 00:00:10]} {[%emt 00:00:04]} 74. Ne5 {[%clk 00:00:10]} {[%emt 00:00:06]}
Ke7 {[%clk 00:00:12]} {[%emt 00:00:02]} 75. Nc4 {[%clk 00:00:12]} {[%emt
00:00:04]} Bb4+ {[%clk 00:00:13]} {[%emt 00:00:04]} 76. Kc2 {[%clk 00:00:15]}
Bc5 {[%clk 00:00:17]} 77. Kc3 {[%clk 00:00:18]} {[%emt 00:00:02]} Kd7 {[%clk
00:00:18]} {[%emt 00:00:04]} 78. Kd2 {[%clk 00:00:09]} {[%emt 00:00:14]} Ke7
{[%clk 00:00:22]} {[%emt 00:00:02]} 79. Kc2 {[%clk 00:00:06]} {[%emt 00:00:08]}
Kd7 {[%clk 00:00:25]} {[%emt 00:00:02]} 80. Kd2 {[%clk 00:00:09]} {[%emt
00:00:02]} Ke7 {[%clk 00:00:29]} {[%emt 00:00:02]} 81. Kc2 {[%clk 00:00:06]}
{[%emt 00:00:07]} Kd7 {[%clk 00:00:33]} {[%emt 00:00:01]} 82. Kd2 {[%clk
00:00:10]} 1/2-1/2

[Event "MČR juniorů a juniorek v rapid šachu 2023"]
[Site "Czech Republic"]
[Date "2023.09.24"]
[Round "7.18"]
[White "Havelkova, Beata"]
[Black "Stastna, Martina"]
[Result "1/2-1/2"]
[TimeControl "20 min + 5 sec per move"]
[WhiteFideId "23709405"]
[BlackFideId "385123"]
[WhiteElo "1494"]
[BlackElo "1725"]

1. e4 {[%clk 00:20:09]} e5 {[%clk 00:20:06]} {[%emt 00:00:04]} 2. Nf3 {[%clk
00:20:12]} {[%emt 00:00:03]} Nc6 {[%clk 00:20:09]} {[%emt 00:00:02]} 3. Bb5
{[%clk 00:20:15]} a6 {[%clk 00:20:14]} 4. Ba4 {[%clk 00:20:18]} {[%emt
00:00:02]} Nf6 {[%clk 00:20:16]} {[%emt 00:00:03]} 5. O-O {[%clk 00:20:22]}
{[%emt 00:00:01]} b5 {[%clk 00:20:21]} 6. Bb3 {[%clk 00:20:26]} Be7 {[%clk
00:20:22]} {[%emt 00:00:04]} 7. Re1 {[%clk 00:20:26]} {[%emt 00:00:04]} d6
{[%clk 00:20:26]} {[%emt 00:00:01]} 8. c3 {[%clk 00:20:30]} {[%emt 00:00:02]}
O-O {[%clk 00:20:27]} {[%emt 00:00:04]} 9. h3 {[%clk 00:20:30]} {[%emt
00:00:05]} Na5 {[%clk 00:20:26]} {[%emt 00:00:06]} 10. Bc2 {[%clk 00:20:33]}
{[%emt 00:00:02]} c5 {[%clk 00:20:29]} 11. d3 {[%clk 00:20:00]} {[%emt
00:00:37]} Qc7 {[%clk 00:20:05]} {[%emt 00:00:30]} 12. Nbd2 {[%clk 00:19:46]}
Nc6 {[%clk 00:20:08]} {[%emt 00:00:22]} 13. Nf1 {[%clk 00:19:39]} Ne8 {[%emt
00:00:27]} 14. Ne3 Be6 15. Nd5 Bxd5 {[%clk 00:19:57]} 16. exd5 {[%emt
00:05:38]} Nd8 17. d4 {[%clk 00:16:13]} exd4 {[%clk 00:16:06]} {[%emt
00:02:18]} 18. cxd4 {[%clk 00:16:17]} {[%emt 00:00:02]} Bf6 {[%clk 00:16:09]}
{[%emt 00:00:01]} 19. Qd3 {[%clk 00:15:34]} {[%emt 00:00:48]} g6 {[%clk
00:16:10]} {[%emt 00:00:05]} 20. Bh6 {[%clk 00:15:25]} {[%emt 00:00:14]} Ng7
{[%clk 00:15:46]} {[%emt 00:00:28]} 21. Rac1 {[%clk 00:12:37]} {[%emt
00:02:53]} Nb7 {[%clk 00:14:52]} {[%emt 00:00:59]} 22. Qd2 {[%clk 00:10:32]}
{[%emt 00:02:10]} Rfe8 {[%clk 00:12:32]} {[%emt 00:02:25]} 23. Bg5 {[%clk
00:10:23]} {[%emt 00:00:14]} Bxg5 {[%clk 00:10:57]} {[%emt 00:01:40]} 24. Qxg5
{[%clk 00:09:50]} {[%emt 00:00:38]} Rxe1+ {[%clk 00:09:14]} {[%emt 00:01:49]}
25. Rxe1 {[%clk 00:09:54]} Re8 {[%clk 00:09:18]} 26. Rxe8+ {[%clk 00:09:23]}
{[%emt 00:00:37]} Nxe8 {[%clk 00:09:21]} {[%emt 00:00:02]} 27. h4 {[%clk
00:08:51]} {[%emt 00:00:36]} Qd8 {[%clk 00:08:20]} {[%emt 00:01:07]} 28. Qxd8
{[%clk 00:08:33]} {[%emt 00:00:22]} Nxd8 {[%clk 00:08:24]} 29. dxc5 {[%clk
00:08:26]} {[%emt 00:00:13]} dxc5 {[%clk 00:08:28]} {[%emt 00:00:02]} 30. Kf1
{[%clk 00:08:17]} {[%emt 00:00:14]} Nb7 {[%clk 00:08:19]} {[%emt 00:00:14]} 31.
Ng5 {[%clk 00:06:55]} {[%emt 00:01:27]} Nf6 {[%clk 00:07:01]} {[%emt 00:01:22]}
32. f3 {[%clk 00:05:33]} {[%emt 00:01:28]} h6 {[%clk 00:06:15]} {[%emt
00:00:51]} 33. Nh3 {[%clk 00:05:20]} {[%emt 00:00:17]} Nd6 {[%clk 00:05:13]}
{[%emt 00:01:07]} 34. Nf4 {[%clk 00:05:24]} {[%emt 00:00:01]} g5 {[%clk
00:04:24]} {[%emt 00:00:54]} 35. hxg5 {[%clk 00:05:28]} {[%emt 00:00:01]} hxg5
{[%clk 00:04:28]} 36. Nh3 {[%clk 00:05:17]} {[%emt 00:00:16]} Nxd5 {[%clk
00:04:32]} {[%emt 00:00:02]} 37. Be4 {[%clk 00:05:03]} {[%emt 00:00:18]} Nxe4
{[%clk 00:03:28]} {[%emt 00:01:09]} 38. fxe4 {[%clk 00:05:07]} {[%emt
00:00:02]} Nb4 {[%clk 00:03:30]} {[%emt 00:00:03]} 39. Nxg5 {[%clk 00:04:31]}
{[%emt 00:00:40]} Nxa2 {[%clk 00:03:33]} {[%emt 00:00:02]} 40. Ke2 {[%clk
00:04:30]} {[%emt 00:00:05]} Kg7 {[%clk 00:03:26]} {[%emt 00:00:13]} 41. e5
{[%clk 00:04:22]} {[%emt 00:00:14]} Kg6 {[%clk 00:02:58]} {[%emt 00:00:32]} 42.
Ne4 {[%clk 00:04:25]} {[%emt 00:00:02]} c4 {[%clk 00:03:02]} {[%emt 00:00:01]}
43. Nc5 {[%clk 00:04:19]} {[%emt 00:00:12]} Nb4 {[%clk 00:03:06]} 44. e6 {[%clk
00:03:35]} {[%emt 00:00:49]} fxe6 {[%clk 00:01:26]} {[%emt 00:01:44]} 45. Nxe6
{[%clk 00:03:39]} Nd3 {[%clk 00:01:30]} {[%emt 00:00:01]} 46. Nc7 {[%clk
00:03:41]} {[%emt 00:00:03]} Nxb2 {[%clk 00:01:30]} {[%emt 00:00:05]} 47. Nxa6
{[%clk 00:03:45]} {[%emt 00:00:02]} Nd3 {[%clk 00:01:27]} {[%emt 00:00:08]} 48.
Kd2 {[%clk 00:03:40]} {[%emt 00:00:09]} b4 {[%clk 00:00:50]} {[%emt 00:00:42]}
49. Nxb4 {[%clk 00:03:05]} {[%emt 00:00:40]} 1/2-1/2

[Event "MČR juniorů a juniorek v rapid šachu 2023"]
[Site "Czech Republic"]
[Date "2023.09.24"]
[Round "7.19"]
[White "Hruby, Filip"]
[Black "Hosova, Sandra"]
[Result "1/2-1/2"]
[TimeControl "20 min + 5 sec per move"]
[WhiteFideId "23721480"]
[BlackFideId "397717"]
[WhiteElo "1460"]
[BlackElo "1682"]

1. e4 {[%clk 00:20:07]} {[%emt 00:00:03]} d5 {[%clk 00:20:05]} {[%emt
00:00:05]} 2. exd5 {[%clk 00:20:07]} {[%emt 00:00:06]} Qxd5 {[%clk 00:20:08]}
{[%emt 00:00:01]} 3. Nf3 {[%clk 00:20:08]} {[%emt 00:00:04]} Bg4 {[%clk
00:20:10]} {[%emt 00:00:02]} 4. Nc3 {[%clk 00:19:30]} {[%emt 00:00:43]} Qd6
{[%clk 00:20:13]} {[%emt 00:00:03]} 5. h3 {[%clk 00:19:24]} {[%emt 00:00:11]}
Bh5 {[%clk 00:20:11]} {[%emt 00:00:07]} 6. Be2 {[%clk 00:18:36]} {[%emt
00:00:53]} Nf6 {[%clk 00:20:00]} {[%emt 00:00:16]} 7. d4 {[%clk 00:18:08]}
{[%emt 00:00:34]} c6 {[%clk 00:20:02]} {[%emt 00:00:03]} 8. Be3 {[%clk
00:17:03]} {[%emt 00:01:09]} e6 {[%clk 00:19:59]} {[%emt 00:00:08]} 9. Qd2
{[%clk 00:16:56]} {[%emt 00:00:11]} Qc7 {[%clk 00:20:01]} {[%emt 00:00:04]} 10.
O-O-O {[%clk 00:16:24]} {[%emt 00:00:37]} Nbd7 {[%clk 00:19:39]} {[%emt
00:00:27]} 11. Bf4 {[%clk 00:14:37]} {[%emt 00:01:51]} Bd6 {[%clk 00:19:24]}
{[%emt 00:00:20]} 12. Bxd6 {[%clk 00:14:26]} {[%emt 00:00:16]} Qxd6 {[%clk
00:19:28]} {[%emt 00:00:02]} 13. Rhe1 {[%clk 00:11:45]} {[%emt 00:02:46]} O-O-O
{[%clk 00:15:58]} {[%emt 00:03:35]} 14. a3 {[%emt 00:03:13]} Bxf3 {[%emt
00:00:10]} 15. Bxf3 {[%emt 00:00:12]} Nb6 {[%emt 00:01:15]} 16. Be2 {[%emt
00:01:00]} h6 {[%emt 00:00:54]} 17. f3 {[%emt 00:00:51]} Rd7 {[%emt 00:01:14]}
18. Ne4 {[%clk 00:05:59]} {[%emt 00:01:14]} Qe7 {[%clk 00:10:35]} 19. c3 {[%clk
00:05:06]} {[%emt 00:02:59]} Rhd8 20. Qe3 {[%emt 00:00:28]} Nfd5 {[%clk
00:09:54]} {[%emt 00:00:23]} 21. Qf2 {[%emt 00:03:29]} Na4 {[%emt 00:01:33]} 22.
Bc4 {[%clk 00:04:11]} {[%emt 00:01:39]} Nab6 23. Bb3 {[%emt 00:00:49]} Qe8
{[%clk 00:03:00]} {[%emt 00:00:49]} 24. Nc5 {[%clk 00:04:09]} Rd6 {[%clk
00:02:51]} {[%emt 00:00:21]} 25. f4 {[%clk 00:04:09]} {[%emt 00:00:05]} Qf8
{[%clk 00:02:23]} {[%emt 00:00:34]} 26. f5 {[%emt 00:00:34]} exf5 {[%clk
00:01:56]} {[%emt 00:00:24]} 27. Qxf5+ {[%emt 00:00:07]} Kb8 28. Qe5 {[%clk
00:03:02]} {[%emt 00:00:42]} Ka8 {[%clk 00:01:29]} {[%emt 00:00:43]} 29. Qg3
{[%clk 00:02:28]} {[%emt 00:00:38]} Rg6 {[%clk 00:01:26]} {[%emt 00:00:10]} 30.
Qf2 {[%clk 00:02:23]} {[%emt 00:00:06]} Rf6 {[%clk 00:01:09]} {[%emt 00:00:25]}
31. Qe2 {[%clk 00:01:58]} {[%emt 00:00:21]} 1/2-1/2